lending/lending_fUSD_20240112
["ID","MTS","AMOUNT","RATE_DAILY","PERIOD"]
[311372088,1705069872872,-500.0,0.00023405,2]
[311372089,1705069872882,-500.0,0.00023405,2]
[311372090,1705069872891,-502.5,0.00023405,2]
[311372091,1705069872900,-500.0,0.00023405,2]
[311372092,1705069872910,-500.0,0.00023405,2]
[311372093,1705069872919,-500.0,0.00023405,2]
[311372094,1705069872929,-702.1,0.00023405,2]
[311372095,1705069872938,-500.0,0.00023405,2]
[311372096,1705069872947,-544.39,0.00023405,2]
[311372097,1705069872957,-672.68,0.00023405,2]
[311372098,1705069872966,-500.0,0.00023405,2]
[311372099,1705069872976,-500.0,0.00023405,2]
[311372100,1705069872985,-500.0,0.00023405,2]
[311372101,1705069872997,-729.54,0.00023405,2]
[311372102,1705069873007,-500.0,0.00023405,2]
[311372103,1705069873016,-500.0,0.00023405,2]
[311372104,1705069873025,-500.0,0.00023405,2]
[311372105,1705069873035,-566.81,0.00023405,2]
[311372106,1705069873044,-500.0,0.00023405,2]
[311372107,1705069873054,-668.25,0.00023405,2]
[311372108,1705069873063,-500.0,0.00023405,2]
[311372109,1705069873073,-500.0,0.00023405,2]
[311372110,1705069873082,-695.69,0.00023405,2]
[311372111,1705069873092,-500.0,0.00023405,2]
[311372112,1705069873101,-500.0,0.00023405,2]
[311372113,1705069873111,-500.0,0.00023405,2]
[311372114,1705069873121,-500.84,0.00023405,2]
[311372115,1705069873130,-693.65,0.00023405,2]
[311372116,1705069873140,-500.0,0.00023405,2]
[311372117,1705069873149,-738.92,0.00023405,2]
[311372118,1705069873158,-500.0,0.00023405,2]
[311372119,1705069873168,-818.71,0.00023405,2]
[311372120,1705069873178,-1260.63,0.00023405,2]
[311372121,1705069873187,-500.0,0.00023405,2]
[311372122,1705069873196,-997.12,0.00023405,2]
[311372123,1705069873207,-500.0,0.00023405,2]
[311372124,1705069873217,-791.08,0.00023405,2]
[311372125,1705069873225,-500.0,0.00023405,2]
[311372126,1705069873235,-500.0,0.00023405,2]
[311372127,1705069873248,-583.49,0.00023405,2]
[311372128,1705069873258,-764.86,0.00023405,2]
[311372129,1705069873268,-500.0,0.00023405,2]
[311372130,1705069873277,-500.0,0.00023405,2]
[311372131,1705069873286,-500.0,0.00023405,2]
[311372132,1705069873297,-500.0,0.00023405,2]
[311372133,1705069873306,-500.0,0.00023405,2]
[311372134,1705069873315,-500.0,0.00023405,2]
[311372135,1705069873325,-500.0,0.00023405,2]
[311372136,1705069873334,-666.51,0.00023405,2]
[311372137,1705069873344,-500.0,0.00023405,2]
[311372138,1705069873353,-778.72,0.00023405,2]
[311372139,1705069873363,-538.35,0.00023405,2]
[311372140,1705069873372,-500.0,0.00023405,2]
[311372141,1705069873381,-500.0,0.00023405,2]
[311372142,1705069873390,-500.0,0.00023405,2]
[311372143,1705069873400,-500.0,0.00023405,2]
[311372144,1705069873409,-500.0,0.00023405,2]
[311372145,1705069873418,-500.0,0.00023405,2]
[311372146,1705069873428,-523.13,0.00023405,2]
[311372147,1705069873437,-500.0,0.00023405,2]
[311372148,1705069873446,-500.0,0.00023405,2]
[311372149,1705069873456,-527.16,0.00023405,2]
[311372150,1705069873466,-1386.41,0.00023405,2]
[311372151,1705069873475,-567.84,0.00023405,2]
[311372152,1705069873484,-500.0,0.00023405,2]
[311372153,1705069873498,-500.0,0.00023405,2]
[311372154,1705069873508,-913.03,0.00023405,2]
[311372155,1705069873518,-500.0,0.00023405,2]
[311372156,1705069873528,-632.3,0.00023405,2]
[311372157,1705069873537,-500.0,0.00023405,2]
[311372158,1705069873550,-507.75,0.00023405,2]
[311372159,1705069873559,-713.86,0.00023405,2]
[311372160,1705069873569,-500.0,0.00023405,2]
[311372161,1705069873581,-565.93,0.00023405,2]
[311372162,1705069873591,-528.24,0.00023405,2]
[311372163,1705069873601,-1012.05,0.00023405,2]
[311372164,1705069873610,-2200.73,0.00023405,2]
[311372165,1705069873620,-500.0,0.00023405,2]
[311372166,1705069873630,-500.0,0.00023405,2]
[311372167,1705069873639,-500.0,0.00023405,2]
[311372168,1705069873649,-500.0,0.00023405,2]
[311372169,1705069873658,-500.0,0.00023405,2]
[311372170,1705069873668,-574.28,0.00023405,2]
[311372171,1705069873677,-500.0,0.00023405,2]
[311372172,1705069873687,-610.82,0.00023405,2]
[311372173,1705069873697,-679.81,0.00023405,5]
[311372174,1705069873706,-560.5,0.00023405,2]
[311372175,1705069873715,-1995.08,0.00023405,2]
[311372176,1705069873725,-500.0,0.00023405,2]
[311372177,1705069873734,-1910.97,0.00023405,2]
[311372178,1705069873747,-500.0,0.00023405,2]
[311372179,1705069873757,-500.0,0.00023405,2]
[311372180,1705069873767,-500.0,0.00023405,2]
[311372181,1705069873776,-500.0,0.00023405,2]
[311372182,1705069873787,-500.0,0.00023405,2]
[311372183,1705069873797,-1099.3,0.00023405,2]
[311372184,1705069873806,-531.38,0.00023405,2]
[311372185,1705069873815,-500.0,0.00023405,2]
[311372186,1705069873825,-832.14,0.00023405,2]
[311372187,1705069873834,-871.05,0.00023405,2]
[311372188,1705069873843,-963.48,0.00023405,2]
[311372189,1705069873853,-500.0,0.00023405,2]
[311372190,1705069873863,-500.0,0.00023405,2]
[311372191,1705069873873,-674.09,0.00023405,2]
[311372192,1705069873882,-500.0,0.00023405,2]
[311372193,1705069873891,-500.0,0.00023405,2]
[311372194,1705069873900,-673.94,0.00023405,2]
[311372195,1705069873909,-1270.12,0.00023405,2]
[311372196,1705069873918,-536.49,0.00023405,2]
[311372197,1705069873928,-464.86,0.00023405,2]
[311372198,1705069873937,-694.97,0.00023405,2]
[311372199,1705069873946,-511.44,0.00023405,2]
[311372200,1705069873956,-500.0,0.00023405,2]
[311372201,1705069873965,-500.0,0.00023405,2]
[311372202,1705069873974,-500.0,0.00023405,2]
[311372203,1705069873984,-521.98,0.00023405,2]
[311372204,1705069873995,-592.85,0.00023405,2]
[311372205,1705069874004,-500.0,0.00023405,2]
[311372206,1705069874013,-500.0,0.00023405,2]
[311372207,1705069874022,-511.22,0.00023405,2]
[311372208,1705069874031,-1245.3,0.00023405,2]
[311372209,1705069874040,-757.48,0.00023405,2]
[311372210,1705069874049,-715.96,0.00023405,2]
[311372211,1705069874058,-500.0,0.00023406,2]
[311372212,1705069874067,-500.0,0.00023406,2]
[311372213,1705069874076,-500.0,0.00023406,2]
[311372214,1705069874085,-500.0,0.00023406,2]
[311372215,1705069874094,-500.0,0.00023406,2]
[311372216,1705069874103,-500.0,0.00023406,2]
[311372217,1705069874112,-500.0,0.00023406,2]
[311372218,1705069874121,-323.98503485,0.00023406,2]
[311372219,1705069874130,-500.0,0.00023406,2]
[311372220,1705069874139,-500.0,0.00023406,2]
[311372221,1705069874148,-500.0,0.00023406,2]
[311372222,1705069874157,-500.0,0.00023406,2]
[311372223,1705069874166,-500.0,0.00023406,2]
[311372224,1705069874177,-500.0,0.00023406,2]
[311372225,1705069874187,-500.0,0.00023406,2]
[311372226,1705069874196,-500.0,0.00023406,2]
[311372227,1705069874205,-500.0,0.00023406,2]
[311372228,1705069874214,-500.0,0.00023406,2]
[311372229,1705069874223,-500.0,0.00023406,2]
[311372230,1705069874232,-500.0,0.00023406,2]
[311372231,1705069874244,-500.0,0.00023406,2]
[311372232,1705069874254,-500.0,0.00023406,2]
[311372233,1705069874264,-500.0,0.00023406,2]
[311372234,1705069874273,-500.0,0.00023406,2]
[311372235,1705069874282,-500.0,0.00023406,2]
[311372236,1705069874292,-500.0,0.00023406,2]
[311372237,1705069874301,-500.0,0.00023406,2]
[311372238,1705069874309,-252.5,0.00023406,2]
[311372239,1705069874319,-500.0,0.00023406,2]
[311372240,1705069874328,-500.0,0.00023406,2]
[311372241,1705069874338,-500.0,0.00023406,2]
[311372242,1705069874347,-500.0,0.00023406,2]
[311372243,1705069874357,-500.0,0.00023406,2]
[311372244,1705069874366,-500.0,0.00023406,2]
[311372245,1705069874376,-500.0,0.00023406,2]
[311372246,1705069874385,-500.0,0.00023406,2]
[311372247,1705069874394,-500.0,0.00023406,2]
[311372248,1705069874404,-500.0,0.00023406,2]
[311372249,1705069874412,-500.0,0.00023406,2]
[311372250,1705069874421,-500.0,0.00023406,2]
[311372251,1705069874431,-500.0,0.00023406,2]
[311372252,1705069874439,-500.0,0.00023406,2]
[311372253,1705069874449,-592.24,0.00023406,2]
[311372254,1705069874458,-500.0,0.00023406,2]
[311372255,1705069874466,-329.79971706,0.00023406,2]
[311372256,1705069874476,-518.56,0.00023406,2]
[311372257,1705069874485,-264.48,0.00023406,2]
[311372258,1705069874497,-198.44,0.00023406,2]
[311372259,1705069874506,-500.0,0.00023406,2]
[311372260,1705069874516,-500.0,0.00023406,2]
[311372261,1705069874526,-500.0,0.00023406,2]
[311372262,1705069874535,-500.0,0.00023406,2]
[311372263,1705069874546,-500.0,0.00023406,2]
[311372264,1705069874556,-266.96,0.00023406,2]
[311372265,1705069874564,-500.0,0.00023406,2]
[311372266,1705069874574,-500.0,0.00023406,2]
[311372267,1705069874585,-500.0,0.00023406,2]
[311372268,1705069874594,-500.0,0.00023406,2]
[311372269,1705069874603,-500.0,0.00023406,2]
[311372270,1705069874612,-500.0,0.00023406,2]
[311372271,1705069874621,-500.0,0.00023406,2]
[311372272,1705069874631,-500.0,0.00023406,2]
[311372273,1705069874640,-500.0,0.00023406,2]
[311372274,1705069874649,-500.0,0.00023406,2]
[311372275,1705069874658,-500.0,0.00023406,2]
[311372276,1705069874668,-249.18716007,0.00023406,2]
[311372277,1705069874678,-500.0,0.00023406,2]
[311372278,1705069874688,-500.0,0.00023406,2]
[311372279,1705069874698,-500.0,0.00023406,2]
[311372280,1705069874707,-555.67273995,0.00023406,2]
[311372281,1705069874716,-500.0,0.00023406,2]
[311372282,1705069874725,-500.0,0.00023406,2]
[311372283,1705069874734,-500.0,0.00023406,2]
[311372284,1705069874748,-500.0,0.00023406,2]
[311372285,1705069874757,-500.0,0.00023406,2]
[311372286,1705069874767,-500.0,0.00023406,2]
[311372287,1705069874777,-500.0,0.00023406,2]
[311372288,1705069874786,-500.0,0.00023406,2]
[311372289,1705069874795,-500.0,0.00023406,2]
[311372290,1705069874804,-500.0,0.00023406,2]
[311372291,1705069874814,-500.0,0.00023406,2]
[311372292,1705069874824,-500.0,0.00023406,2]
[311372293,1705069874833,-500.0,0.00023406,2]
[311372294,1705069874842,-500.0,0.00023406,2]
[311372295,1705069874852,-500.0,0.00023406,2]
[311372296,1705069874861,-500.0,0.00023406,2]
[311372297,1705069874871,-500.0,0.00023406,2]
[311372298,1705069874880,-500.0,0.00023406,2]
[311372299,1705069874890,-500.0,0.00023406,2]
[311372300,1705069874899,-500.0,0.00023406,2]
[311372301,1705069874908,-500.0,0.00023406,2]
[311372302,1705069874917,-500.0,0.00023406,2]
[311372303,1705069874926,-500.0,0.00023406,2]
[311372304,1705069874935,-569.65,0.00023406,2]
[311372305,1705069874945,-500.0,0.00023406,2]
[311372306,1705069874954,-500.0,0.00023406,2]
[311372307,1705069874963,-500.0,0.00023406,2]
[311372308,1705069874973,-500.0,0.00023406,2]
[311372309,1705069874983,-500.0,0.00023406,2]
[311372310,1705069874996,-500.0,0.00023406,2]
[311372311,1705069875005,-500.0,0.00023406,2]
[311372312,1705069875014,-500.0,0.00023406,2]
[311372313,1705069875024,-500.0,0.00023406,2]
[311372314,1705069875033,-500.0,0.00023406,2]
[311372315,1705069875043,-500.0,0.00023406,2]
[311372316,1705069875052,-500.0,0.00023406,2]
[311372317,1705069875062,-500.0,0.00023406,2]
[311372318,1705069875072,-500.0,0.00023406,2]
[311372319,1705069875081,-500.0,0.00023406,2]
[311372320,1705069875091,-500.0,0.00023406,2]
[311372321,1705069875102,-500.0,0.00023406,2]
[311372322,1705069875112,-500.0,0.00023406,2]
[311372323,1705069875121,-500.0,0.00023406,2]
[311372324,1705069875132,-500.0,0.00023406,2]
[311372325,1705069875142,-500.0,0.00023406,2]
[311372326,1705069875151,-500.0,0.00023406,2]
[311372327,1705069875161,-500.0,0.00023406,2]
[311372328,1705069875170,-500.0,0.00023406,2]
[311372329,1705069875179,-500.0,0.00023406,2]
[311372330,1705069875189,-500.0,0.00023406,2]
[311372331,1705069875199,-500.0,0.00023406,2]
[311372332,1705069875209,-500.0,0.00023406,2]
[311372333,1705069875218,-561.02394969,0.00023406,2]
[311372334,1705069875230,-250.0,0.00023406,2]
[311372335,1705069875243,-500.0,0.00023406,2]
[311372336,1705069875254,-500.0,0.00023406,2]
[311372337,1705069875264,-500.0,0.00023406,2]
[311372338,1705069875273,-500.0,0.00023406,2]
[311372339,1705069875283,-500.0,0.00023406,2]
[311372340,1705069875292,-500.0,0.00023406,2]
[311372341,1705069875302,-500.0,0.00023406,2]
[311372342,1705069875312,-500.0,0.00023406,2]
[311372343,1705069875321,-500.0,0.00023406,2]
[311372344,1705069875331,-500.0,0.00023406,2]
[311372345,1705069875341,-500.0,0.00023406,2]
[311372346,1705069875350,-500.0,0.00023406,2]
[311372347,1705069875360,-500.0,0.00023406,2]
[311372348,1705069875370,-500.0,0.00023406,2]
[311372349,1705069875379,-500.0,0.00023406,2]
[311372350,1705069875389,-500.0,0.00023406,2]
[311372351,1705069875398,-500.0,0.00023406,2]
[311372352,1705069875408,-500.0,0.00023406,2]
[311372353,1705069875418,-500.0,0.00023406,2]
[311372354,1705069875427,-500.0,0.00023406,2]
[311372355,1705069875437,-500.0,0.00023406,2]
[311372356,1705069875447,-500.0,0.00023406,2]
[311372357,1705069875457,-500.0,0.00023406,2]
[311372358,1705069875468,-2064.59,0.00023406,2]
[311372359,1705069875478,-500.0,0.00023406,2]
[311372360,1705069875490,-500.0,0.00023406,2]
[311372361,1705069875500,-500.0,0.00023406,2]
[311372362,1705069875510,-189.47126339,0.00023406,2]
[311372363,1705069875520,-554.14,0.00023406,2]
[311372364,1705069875530,-555.49,0.00023406,2]
[311372365,1705069875541,-500.0,0.00023406,2]
[311372366,1705069875555,-500.0,0.00023406,2]
[311372367,1705069875565,-500.0,0.00023406,2]
[311372368,1705069875576,-2984.21,0.00023406,2]
[311372369,1705069875587,-500.0,0.00023406,2]
[311372370,1705069875597,-500.0,0.00023406,2]
[311372371,1705069875607,-500.0,0.00023406,2]
[311372372,1705069875616,-500.0,0.00023406,2]
[311372373,1705069875626,-500.0,0.00023406,2]
[311372374,1705069875636,-500.0,0.00023406,2]
[311372375,1705069875646,-510.65,0.00023406,2]
[311372376,1705069875656,-500.0,0.00023406,2]
[311372377,1705069875665,-500.0,0.00023406,2]
[311372378,1705069875676,-1592.71,0.00023406,2]
[311372379,1705069875686,-500.0,0.00023406,2]
[311372380,1705069875696,-500.0,0.00023406,2]
[311372381,1705069875706,-500.0,0.00023406,2]
[311372382,1705069875716,-500.0,0.00023406,2]
[311372383,1705069875726,-640.0,0.00023406,2]
[311372384,1705069875736,-173.26994213,0.00023406,2]
[311372385,1705069875749,-500.0,0.00023406,2]
[311372386,1705069875759,-500.0,0.00023406,2]
[311372387,1705069875770,-500.0,0.00023406,2]
[311372388,1705069875780,-500.0,0.00023406,2]
[311372389,1705069875789,-500.0,0.00023406,2]
[311372390,1705069875800,-500.0,0.00023406,2]
[311372391,1705069875811,-500.0,0.00023406,2]
[311372392,1705069875821,-500.0,0.00023406,2]
[311372393,1705069875832,-500.0,0.00023406,2]
[311372394,1705069875842,-500.0,0.00023406,2]
[311372395,1705069875852,-500.0,0.00023406,2]
[311372396,1705069875862,-370.9951791,0.00023406,2]
[311372397,1705069875872,-500.0,0.00023406,2]
[311372398,1705069875882,-266.73722,0.00023407,2]
[311372399,1705069875893,-500.0,0.00023407,2]
[311372400,1705069875903,-500.0,0.00023407,2]
[311372401,1705069875913,-500.0,0.00023407,2]
[311372402,1705069875924,-592.16,0.00023407,2]
[311372403,1705069875934,-500.0,0.00023407,2]
[311372404,1705069875944,-500.0,0.00023407,2]
[311372405,1705069875954,-500.0,0.00023407,2]
[311372406,1705069875965,-500.0,0.00023407,2]
[311372407,1705069875975,-500.0,0.00023407,2]
[311372408,1705069875985,-541.0,0.00023407,2]
[311372409,1705069875999,-500.0,0.00023407,2]
[311372410,1705069876009,-500.0,0.00023407,2]
[311372411,1705069876018,-500.0,0.00023407,2]
[311372412,1705069876031,-500.0,0.00023407,2]
[311372413,1705069876049,-500.0,0.00023407,2]
[311372414,1705069876059,-500.0,0.00023407,2]
[311372415,1705069876068,-500.0,0.00023407,2]
[311372416,1705069876078,-236.89436254,0.00023407,2]
[311372417,1705069876087,-500.0,0.00023407,2]
[311372418,1705069876097,-500.0,0.00023407,2]
[311372419,1705069876107,-500.0,0.00023407,2]
[311372420,1705069876116,-500.0,0.00023407,2]
[311372421,1705069876126,-500.0,0.00023407,2]
[311372422,1705069876135,-500.0,0.00023407,2]
[311372423,1705069876145,-500.0,0.00023407,2]
[311372424,1705069876156,-500.0,0.00023407,2]
[311372425,1705069876166,-500.0,0.00023407,2]
[311372426,1705069876176,-500.0,0.00023407,2]
[311372427,1705069876186,-500.0,0.00023407,2]
[311372428,1705069876195,-500.0,0.00023407,2]
[311372429,1705069876205,-500.0,0.00023407,2]
[311372430,1705069876215,-291.26502196,0.00023407,2]
[311372431,1705069876224,-500.0,0.00023407,2]
[311372432,1705069876234,-500.0,0.00023407,2]
[311372433,1705069876248,-500.0,0.00023407,2]
[311372434,1705069876257,-500.0,0.00023407,2]
[311372435,1705069876267,-500.0,0.00023407,2]
[311372436,1705069876278,-502.42,0.00023407,2]
[311372437,1705069876289,-500.0,0.00023407,2]
[311372438,1705069876300,-500.0,0.00023407,2]
[311372439,1705069876310,-500.0,0.00023407,2]
[311372440,1705069876319,-500.0,0.00023407,2]
[311372441,1705069876329,-500.0,0.00023407,2]
[311372442,1705069876339,-500.0,0.00023407,2]
[311372443,1705069876350,-500.0,0.00023407,2]
[311372444,1705069876359,-500.0,0.00023407,2]
[311372445,1705069876369,-881.21,0.00023407,2]
[311372446,1705069876379,-500.0,0.00023407,2]
[311372447,1705069876388,-500.0,0.00023407,2]
[311372448,1705069876398,-535.59,0.00023407,2]
[311372449,1705069876407,-500.0,0.00023407,2]
[311372450,1705069876417,-500.0,0.00023407,2]
[311372451,1705069876426,-514.86,0.00023407,2]
[311372452,1705069876437,-4615.76611416,0.00023504,2]
[311372453,1705069876446,-4540.888268,0.00023519,2]
[311372454,1705069876456,-629.62,0.00023546,2]
[311372455,1705069876467,-923.31,0.00023546,2]
[311372456,1705069876477,-537.36,0.00023546,2]
[311372457,1705069876486,-760.69,0.00023546,2]
[311372458,1705069876499,-500.0,0.00023546,2]
[311372459,1705069876508,-279.43,0.00023577,2]
[311372460,1705069876518,-760.98,0.00023676,2]
[311372461,1705069876528,-1576.67,0.00023676,2]
[311372462,1705069876538,-1676.63,0.00023676,2]
[311372463,1705069876553,-1776.52,0.00023676,2]
[311372464,1705069876562,-1028.33,0.00023676,2]
[311372465,1705069876572,-903.76,0.00023676,2]
[311372466,1705069876582,-823.09,0.00023676,2]
[311372467,1705069876593,-500.0,0.00023676,2]
[311372468,1705069876602,-1992.9,0.00023676,2]
[311372469,1705069876612,-500.0,0.00023676,2]
[311372470,1705069876622,-500.0,0.00023676,2]
[311372471,1705069876632,-1088.57,0.00023676,2]
[311372472,1705069876641,-592.52,0.00023676,2]
[311372473,1705069876651,-1069.49,0.00023676,2]
[311372474,1705069876661,-11473.02,0.00023676,2]
[311372475,1705069876671,-1045.86,0.00023676,2]
[311372476,1705069876681,-500.0,0.00023676,2]
[311372477,1705069876691,-1530.26,0.00023676,2]
[311372478,1705069876701,-693.02,0.00023676,2]
[311372479,1705069876711,-465.91,0.00023676,2]
[311372480,1705069876721,-500.0,0.00023676,2]
[311372481,1705069876731,-773.0,0.00023676,2]
[311372482,1705069876744,-1161.03,0.00023676,2]
[311372483,1705069876754,-500.0,0.00023676,2]
[311372484,1705069876764,-445.12257133,0.00023676,2]
[311372485,1705069876774,-500.0,0.00023676,2]
[311372486,1705069876784,-500.0,0.00023676,2]
[311372487,1705069876794,-500.0,0.00023676,2]
[311372488,1705069876804,-500.0,0.00023676,2]
[311372489,1705069876815,-500.0,0.00023676,2]
[311372490,1705069876825,-500.0,0.00023676,2]
[311372491,1705069876839,-3055.75,0.00023676,2]
[311372492,1705069876850,-151.04,0.00023676,2]
[311372493,1705069876868,-996.78,0.00023677,2]
[311372494,1705069876878,-939.36,0.00023677,2]
[311372495,1705069876889,-535.32,0.00023677,2]
[311372496,1705069876899,-1978.54,0.00023677,2]
[311372497,1705069876909,-570.64,0.00023677,2]
[311372498,1705069876919,-10562.85,0.00023677,2]
[311372499,1705069876928,-6373.11,0.00023677,2]
[311372500,1705069876938,-749.0,0.00023677,2]
[311372501,1705069876948,-928.84,0.00023677,2]
[311372502,1705069876959,-536.68,0.00023677,2]
[311372503,1705069876969,-2087.57,0.00023677,2]
[311372504,1705069876979,-904.81,0.00023677,2]
[311372505,1705069876991,-889.19,0.00023677,2]
[311372506,1705069877001,-978.77,0.00023677,2]
[311372507,1705069877011,-712.93,0.00023677,2]
[311372508,1705069877021,-553.32,0.00023677,2]
[311372509,1705069877031,-1083.57,0.00023677,2]
[311372510,1705069877041,-5000.64,0.00023677,2]
[311372511,1705069877051,-1837.15,0.00023677,2]
[311372512,1705069877061,-500.0,0.00023677,2]
[311372513,1705069877071,-1063.77,0.00023677,2]
[311372514,1705069877082,-500.0,0.00023677,2]
[311372515,1705069877092,-4397.81,0.00023677,2]
[311372516,1705069877103,-1384.9,0.00023677,2]
[311372517,1705069877113,-1749.07,0.00023677,2]
[311372518,1705069877123,-8501.24,0.00023677,2]
[311372519,1705069877133,-550.62,0.00023677,2]
[311372520,1705069877143,-500.0,0.00023677,2]
[311372521,1705069877153,-563.63,0.00023677,2]
[311372522,1705069877163,-2396.88,0.00023677,2]
[311372523,1705069877177,-947.32,0.00023677,2]
[311372524,1705069877188,-3427.97,0.00023677,2]
[311372525,1705069877198,-3063.47,0.00023677,2]
[311372526,1705069877209,-2388.38,0.00023677,2]
[311372527,1705069877218,-1809.41,0.00023677,2]
[311372528,1705069877228,-500.0,0.00023678,2]
[311372529,1705069877240,-500.0,0.00023678,2]
[311372530,1705069877250,-500.0,0.00023678,2]
[311372531,1705069877260,-502.36,0.00023678,2]
[311372532,1705069877270,-516.86,0.00023678,2]
[311372533,1705069877280,-612.81,0.00023678,2]
[311372534,1705069877290,-500.0,0.00023678,2]
[311372535,1705069877300,-513.4,0.00023678,2]
[311372536,1705069877310,-500.0,0.00023678,2]
[311372537,1705069877320,-500.0,0.00023678,2]
[311372538,1705069877331,-500.0,0.00023678,2]
[311372539,1705069877346,-500.0,0.00023678,2]
[311372540,1705069877700,-500.0,0.00023678,2]
[311372541,1705069877709,-500.0,0.00023678,2]
[311372542,1705069877719,-500.0,0.00023678,2]
[311372543,1705069877729,-504.92,0.00023678,2]
[311372544,1705069877739,-500.0,0.00023678,2]
[311372545,1705069877750,-500.0,0.00023678,2]
[311372546,1705069877761,-500.0,0.00023678,2]
[311372547,1705069877771,-500.0,0.00023678,2]
[311372548,1705069877781,-500.0,0.00023678,2]
[311372549,1705069877790,-500.0,0.00023678,2]
[311372550,1705069877800,-500.0,0.00023678,2]
[311372551,1705069877809,-500.0,0.00023678,2]
[311372552,1705069877819,-500.0,0.00023678,2]
[311372553,1705069877829,-500.0,0.00023678,2]
[311372554,1705069877839,-605.75,0.00023678,2]
[311372555,1705069877848,-500.0,0.00023678,2]
[311372556,1705069877858,-500.0,0.00023678,2]
[311372557,1705069877867,-500.0,0.00023678,2]
[311372558,1705069877877,-539.29,0.00023678,2]
[311372559,1705069877886,-500.0,0.00023678,2]
[311372560,1705069877895,-500.0,0.00023678,2]
[311372561,1705069877905,-585.54,0.00023678,2]
[311372562,1705069877915,-500.0,0.00023678,2]
[311372563,1705069877924,-500.25,0.00023678,2]
[311372564,1705069877933,-667.11,0.00023678,2]
[311372565,1705069877943,-503.41,0.00023678,2]
[311372566,1705069877952,-510.64,0.00023678,2]
[311372567,1705069877962,-502.72,0.00023678,2]
[311372568,1705069877972,-547.84,0.00023678,2]
[311372569,1705069877981,-500.0,0.00023678,2]
[311372570,1705069877992,-500.0,0.00023678,2]
[311372571,1705069878002,-500.0,0.00023678,2]
[311372572,1705069878012,-500.0,0.00023678,2]
[311372573,1705069878021,-500.0,0.00023678,2]
[311372574,1705069878031,-166.73,0.00023678,2]
[311372575,1705069878040,-500.0,0.00023678,2]
[311372576,1705069878049,-500.0,0.00023678,2]
[311372577,1705069878059,-500.0,0.00023678,2]
[311372578,1705069878069,-500.0,0.00023678,2]
[311372579,1705069878090,-500.0,0.00023678,2]
[311372580,1705069878101,-759.5,0.00023678,2]
[311372581,1705069878112,-500.0,0.00023678,2]
[311372582,1705069878124,-500.0,0.00023678,2]
[311372583,1705069878134,-500.0,0.00023678,2]
[311372584,1705069878145,-594.48,0.00023678,2]
[311372585,1705069878156,-518.35,0.00023678,2]
[311372586,1705069878166,-500.0,0.00023678,2]
[311372587,1705069878176,-500.0,0.00023678,2]